Cogmind - Beta 15 @@@ ROGUE MODE // 2025.06.24 @ 14:32:52 Player: Burcsboon Result: Destroyed by JH-AAK(j) with Overtuned Pulse Rifle Performance ------------- Evolutions (0) 0 Regions Visited (3) 600 Robots Destroyed (6) 30 Value Destroyed (249) 249 Prototype IDs (6) 120 Alien Tech Used (0) 0 Bonus (800) 800 TOTAL SCORE: 1799 Bonus ------- Registered with UFD 300 Met Optimus in HQ 500 Cogmind --------- Core Integrity 0/250 Matter 300/300 Energy 100/100 System Corruption 1% Temperature Cool (62) Movement Walking (120) Location -7/Scraptown Parts ------- > --- POWER (1) -------- (None) > --- PROPULSION (2) --- Aluminum Leg Aluminum Leg > --- UTILITY (2) ------ Small Storage Unit Sensor Array > --- WEAPON (2) ------- Assault Rifle Barrage Gun > --- INVENTORY (8) ---- Aluminum Leg Aluminum Leg Aluminum Leg Aluminum Leg A0-MCA's Component Scanner DRS Beacon (Ready) Peak State ------------ > --- POWER ------------ Light Deuterium Engine > --- PROPULSION ------- Overtuned Titanium Leg Makeshift Leg > --- UTILITY ---------- Small Storage Unit Light Armor Plating > --- WEAPON ----------- Barrage Gun Light Cannon > --- INVENTORY -------- Light Nuclear Core Aluminum Leg Aluminum Leg Overtuned Titanium Leg Sensor Array A0-MCA's Component Scanner Assault Rifle DRS Beacon [Rating: 18] Favorites ----------- Power Ion Engine Engine Ion Engine Power Core Light Nuclear Core Propulsion Aluminum Leg Leg Aluminum Leg Utility Small Storage Unit Device Sensor Array Storage Small Storage Unit Protection Light Armor Plating Weapon Assault Rifle Energy Gun Small Laser Ballistic Gun Assault Rifle Ballistic Cannon Light Cannon Build | -11 -10 -10 -7 ------- Run | Yrd Mat Sub Scr Slots Evolved . | . . . . Power . | . . . . Propulsion . | . . . . Utility . | . . . . Weapon . | . . . . Parts Attached 19 | 6 2 . 11 Power 3 | 1 . . 2 Engine 2 | 1 . . 1 Core 1 | . . . 1 Reactor . | . . . . Propulsion 8 | 2 . . 6 Treads . | . . . . Leg 8 | 2 . . 6 Wheel . | . . . . Hover . | . . . . Flight . | . . . . Utility 3 | 1 1 . 1 Device 1 | . 1 . . Storage 1 | 1 . . . Processor . | . . . . Hackware . | . . . . Protection 1 | . . . 1 Artifact . | . . . . Weapon 5 | 2 1 . 2 Energy Gun 1 | 1 . . . Energy Cannon . | . . . . Ballistic Gun 3 | 1 1 . 1 Ballistic Cannon 1 | . . . 1 Launcher . | . . . . Special Weapon . | . . . . Impact Weapon . | . . . . Slashing Weapon . | . . . . Piercing Weapon . | . . . . Special Melee Weapon . | . . . . Unidentified Prototypes . | . . . . Parts Lost 4 | . . . 4 Power 2 | . . . 2 Propulsion . | . . . . Utility 1 | . . . 1 Weapon 1 | . . . 1 Highest Loss Streak 2 | . . . 2 To Critical Strikes . | . . . . Average Backups 7 | 3 7 8 7 Power . | . 1 1 . Propulsion 3 | 2 4 4 3 Utility 1 | . 1 2 1 Weapon 1 | . 1 1 2 Tool/Special . | . . . . Unused Backups 13 | . 5 1 7 Power 1 | . . . 1 Propulsion 8 | . 4 . 4 Utility 3 | . . 1 2 Weapon 1 | . 1 . . Tool/Special . | . . . . Average Slot Usage (%) 81 | . 93 100 76 Engine 13 | . 14 14 13 Leg 27 | . 28 28 27 Device 11 | . 8 14 11 Storage 14 | . 14 14 14 Protection 1 | . . . 2 Ballistic Gun 8 | . 24 28 3 Ballistic Cannon 1 | . . . 2 Peak Build Rating 18 | 6 7 8 18 Average Rating 6 | 4 6 7 6 On Entrance 5 | . 6 7 8 Naked Turns . | . . . . Heaviest Build 19 | 13 15 15 19 Greatest Support 39 | 20 20 20 39 Greatest Overweight (x) 1 | . . . 1 Average Overweight (x) . | . . . . Largest Inventory Capacity 8 | 8 8 8 8 Average Capacity 7 | 6 8 8 8 Most Carried 8 | 6 8 8 8 Average Carried 7 | 3 7 7 7 Final Capacity 8 | 8 8 8 8 Final Carried 8 | 6 8 8 6 Class Distribution -------------------- 100% | Mutant Dominant Class ---------------- Mutant | -10/Materials Mutant | -10/Subcaves Mutant | -7/Scraptown Resources | -11 -10 -10 -7 ----------- Run | Yrd Mat Sub Scr Matter Collected 683 | 190 98 16 379 Remotely . | . . . . Salvage Created 301 | . 42 . 259 Parts 13 | . 4 . 9 Haulers Intercepted . | . . . . Recyclers Shooed . | . . . . Parts Field Recycled . | . . . . Retrieved Matter . | . . . . Parts Self-Destructed . | . . . . Prevented . | . . . . Kills | -11 -10 -10 -7 ------- Run | Yrd Mat Sub Scr Combat Hostiles Destroyed 6 | . 1 . 5 Guns 5 | . 1 . 4 Cannons 1 | . . . 1 Classes Destroyed 5 | . 1 . 4 Grunt 1 | . 1 . . Federalist 1 | . . . 1 Explorer 1 | . . . 1 Ranger 1 | . . . 1 Scrapper 2 | . . . 2 Best Kill Streak 2 | . 1 . 2 Combat Bots Only 2 | . 1 . 2 Max Kills in Single Turn 1 | . 1 . 1 Gunslinging . | . . . . Exploded . | . . . . Melee . | . . . . Uniques/NPCs Destroyed . | . . . . Combat | -11 -10 -10 -7 -------- Run | Yrd Mat Sub Scr Hostile Shots Fired 81 | . 3 2 76 Missed 22 | . 2 1 19 Hits 59 | . 1 1 57 Melee 3 | . . . 3 Projectile 56 | . 1 1 54 Critical Strikes 3 | . . . 3 Damage Taken 897 | . 10 22 865 Core 264 | . 10 22 232 Absorbed by Shields . | . . . . Core Remaining (%) 100 | 100 . . . Volleys Fired 41 | . 3 1 37 Largest 2 | . 2 2 2 Hottest 58 | . 40 40 58 Shots Fired 74 | . 6 2 66 Gun 47 | . 6 2 39 Cannon 27 | . . . 27 Launcher . | . . . . Special . | . . . . Kinetic 74 | . 6 2 66 Thermal . | . . . . Explosive . | . . . . Electromagnetic . | . . . . Robot Hit Streak 11 | . 1 . 11 Robot Miss Streak 3 | . 2 2 3 Penetration Max . | . . . . Secondary Targets . | . . . . Shots Hit Robots 42 | . 2 . 40 Core Hits 10 | . 2 . 8 Critical Kills . | . . . . Critical Parts Destroyed 1 | . . . 1 Critical Strikes 2 | . . . 2 Destroy 1 | . . . 1 Blast 1 | . . . 1 Melee Attacks . | . . . . Impact . | . . . . Slashing . | . . . . Piercing . | . . . . Sneak Attacks . | . . . . Combat Hostiles . | . . . . Follow-up Attacks . | . . . . Damage Inflicted 709 | . 24 . 685 Guns 424 | . 24 . 400 Cannons 285 | . . . 285 Explosions . | . . . . Melee . | . . . . Ramming . | . . . . Kinetic 709 | . 24 . 685 Thermal . | . . . . Explosive . | . . . . Electromagnetic . | . . . . Impact . | . . . . Slashing . | . . . . Piercing . | . . . . Highest Corruption 1 | . . . 1 Average Corruption 1 | . . . 1 Corruption Purged . | . . . . Corruption Blocked . | . . . . Overload Shots . | . . . . Overflow Damage 13 | . . . 13 Projectiles 13 | . . . 13 Explosions . | . . . . Melee . | . . . . Knockbacks 5 | . . . 5 Impact . | . . . . Kinetic 5 | . . . 5 Secondary . | . . . . Self-Inflicted Damage . | . . . . Shots . | . . . . Rammed . | . . . . Targets Rammed . | . . . . Kicked . | . . . . Crushed . | . . . . Highest Temperature 94 | . . . 94 Average Temperature 28 | . . . 28 Received Heat Transfer 306 | . 6 6 294 Siege Activations . | . . . . Martial Activations . | . . . . Shielding Activations . | . . . . Robots Disrupted . | . . . . Combat Hostiles . | . . . . Robots Corrupted . | . . . . Combat Hostiles . | . . . . Parts Fried . | . . . . Impact Corruptions . | . . . . Robots Melted . | . . . . Combat Hostiles . | . . . . Parts Melted 1 | . . . 1 Heat Transferred . | . . . . Parts Sabotaged . | . . . . Parts Stolen . | . . . . Parts Stripped . | . . . . Power Chain Reactions . | . . . . Alert | -11 -10 -10 -7 ------- Run | Yrd Mat Sub Scr Maximum Alert Level . | . . . . Low Security (%) 100 | 100 100 . . Level 1 . | . . . . Level 2 . | . . . . Level 3 . | . . . . Level 4 . | . . . . Level 5 . | . . . . High Security . | . . . . Max Security . | . . . . Peak Influence 30 | . 30 . . Initial . | . . . . Average 2 | . 3 . . Influence Increases 45 | . 45 . . Destroy 0b10 Robot/C 20 | . 20 . . Destroy Leader 10 | . 10 . . Partial Spotted 15 | . 15 . . Influence Decreases 45 | . 45 . . Time Decay 45 | . 45 . . Squads Dispatched 1 | . 1 . . Investigation . | . . . . Extermination . | . . . . Reinforcement 1 | . 1 . . Assault . | . . . . Garrison . | . . . . Intercept . | . . . . Searches Triggered . | . . . . Construction Impeded . | . . . . Haulers Reinforced . | . . . . Active Scanning Responses . | . . . . Cargo Convoy Interrupts . | . . . . Stealth | -11 -10 -10 -7 --------- Run | Yrd Mat Sub Scr Distress Signals . | . . . . Communications Jammed . | . . . . Distress Signals . | . . . . Times Spotted 29 | . 2 2 25 Peak Tracking Total 5 | . 1 2 5 Tactical Retreats . | . . . . Traps | -11 -10 -10 -7 ------- Run | Yrd Mat Sub Scr Traps Triggered . | . . . . Indirectly . | . . . . Trap Hack Attempts . | . . . . Triggered . | . . . . Disarmed . | . . . . Reprogrammed . | . . . . Reused . | . . . . Traps Extracted . | . . . . Installed . | . . . . Triggered . | . . . . Machines | -11 -10 -10 -7 ---------- Run | Yrd Mat Sub Scr Machines Disabled . | . . . . Max in Single Turn . | . . . . Machines Repaired . | . . . . Machines Dismantled . | . . . . Machines Sabotaged . | . . . . Overloaded Fab Kills . | . . . . Hacking | -11 -10 -10 -7 --------- Run | Yrd Mat Sub Scr Machines Accessed 1 | . . . 1 Terminals . | . . . . Fabricators . | . . . . Repair Stations . | . . . . Recycling Units . | . . . . Scanalyzers . | . . . . Garrison Access . | . . . . Total Hacks 3 | . . . 3 Successful 3 | . . . 3 Failed . | . . . . Catastrophic . | . . . . Database Lockouts . | . . . . Manual . | . . . . Terminals . | . . . . Fabricators . | . . . . Repair Stations . | . . . . Recycling Units . | . . . . Scanalyzers . | . . . . Garrison Access . | . . . . Terminal Hacks 3 | . . . 3 Record 3 | . . . 3 Fabricator Hacks . | . . . . Repair Station Hacks . | . . . . Recycling Unit Hacks . | . . . . Scanalyzer . | . . . . Garrison Access Hacks . | . . . . Unauthorized Hacks . | . . . . Terminals . | . . . . Fabricators . | . . . . Repair Stations . | . . . . Recycling Units . | . . . . Scanalyzers . | . . . . Garrison Access . | . . . . Data Cores Recovered . | . . . . Used . | . . . . Hacking Detections . | . . . . Full Trace Events . | . . . . Feedback Events . | . . . . Feedback Blocked . | . . . . Robot Schematics Acquired . | . . . . Robots Built . | . . . . Authchips . | . . . . Time . | . . . . Total Robot Build Rating . | . . . . Part Schematics Acquired . | . . . . Parts Built . | . . . . Authchips . | . . . . Time . | . . . . Total Part Build Rating . | . . . . Parts Repaired . | . . . . Time . | . . . . Parts Recycled . | . . . . Recycled Matter . | . . . . Retrieved Matter . | . . . . Retrieved Components . | . . . . Parts Scanalyzed . | . . . . Part Schematics Acquired . | . . . . Parts Damaged . | . . . . Bothacking | -11 -10 -10 -7 ------------ Run | Yrd Mat Sub Scr Used RIF Installer . | . . . . Robots Hacked . | . . . . Non-combat . | . . . . Combat . | . . . . Robot Hacks Applied . | . . . . Relay Couplers Released . | . . . . Fabnet Peak Effective % . | . . . . Robots Rewired . | . . . . Allies Hacked . | . . . . Hacks Repelled . | . . . . Allies | -11 -10 -10 -7 -------- Run | Yrd Mat Sub Scr Total Allies . | . . . . Largest Group . | . . . . Highest-Rated Group . | . . . . Highest-Rated Ally . | . . . . Total Orders . | . . . . Ally Attacks . | . . . . Total Damage . | . . . . Kills . | . . . . Allies Corrupted . | . . . . Allies Melted 5 | . . . 5 Intel | -11 -10 -10 -7 ------- Run | Yrd Mat Sub Scr Active Infowar (turns) 1843 | . 160 258 1425 Sensors 1843 | . 160 258 1425 Robot Analysis Total . | . . . . Derelict Logs Recovered 1 | . . 1 . Drone Launches . | . . . . Drone Recoveries . | . . . . Exploration | -11 -10 -10 -7 ------------- Run | Yrd Mat Sub Scr Turns Passed 2285 | 79 275 258 1673 Spaces Moved 1718 | 54 208 202 1254 Core 5 | 5 . . . Treads . | . . . . Legs 1713 | 49 208 202 1254 Wheels . | . . . . Hover . | . . . . Flight . | . . . . Fastest Speed 50 | 50 120 120 100 Average Speed 119 | 113 120 120 119 Slowest Speed 190 | 120 120 120 190 Overloaded Moves . | . . . . Propulsion Burnouts . | . . . . Robots Hopped . | . . . . Potential Cave-ins . | . . . . Cave-ins Triggered . | . . . . Exploration Rate (%) 35 | 4 38 21 78 Regions Visited 3 Branch Regions 2 Pre-discovered Areas 2 | . . 1 1 Known Exits Taken . | . . . . Unknown Exits Taken 3 | 1 1 1 . Scrap Searched . | . . . . Spaces Dug . | . . . . Terrain Destroyed . | . . . . Melee . | . . . . Projectile . | . . . . AOE . | . . . . Terrain Rammed . | . . . . Walls Destroyed . | . . . . Machines Disabled . | . . . . Actions | -11 -10 -10 -7 --------- Run | Yrd Mat Sub Scr Total 1887 | 71 230 216 1370 Wait 57 | . 4 12 41 Move 1715 | 53 207 201 1254 Hop . | . . . . Pick Up 30 | 12 8 1 9 Fast Attach 5 | . 1 . 4 Attach 13 | 6 1 . 6 Detach 2 | . . . 2 Swap 4 | . . . 4 Drop 20 | . 6 1 13 Fire 41 | . 3 1 37 Melee . | . . . . Ram . | . . . . Kick . | . . . . Crush . | . . . . Escape Stasis . | . . . . Rewire . | . . . . Trap . | . . . . Miscellaneous . | . . . . Route ------- -11/Scrapyard -10/Materials (discovered 2 exits: [*Mat] / [*Sub]) -10/Subcaves (discovered 3 exits: [*Mat] / *Scr x2) -7/Scraptown (discovered 1 exit: [*Fac]) History --------- Turn | Location | Event 3 | -11/Scrapyard | Discovered new exit (range 15) 80 | -11/Scrapyard | Entered Materials 81 | -10/Materials | Met a group of wandering Federalists 186 | -10/Materials | Discovered new exit (range 5) 314 | -10/Materials | Build established: Mutant 341 | -10/Materials | Discovered new exit (range 11) 355 | -10/Materials | Entered Subcaves 356 | -10/Subcaves | Continued accompanying wandering Federalists (4) 356 | -10/Subcaves | Approached by a straggling Scientist 383 | -10/Subcaves | Discovered new exit (range 15) 427 | -10/Subcaves | Shifting Twisted Machinery released Sub. Machine Gun 563 | -10/Subcaves | Wandering Federalist uncovered a shortcut to Scraptown 575 | -10/Subcaves | Scientist uncovered a shortcut to Scraptown 613 | -10/Subcaves | Entered Scraptown 728 | -7/Scraptown | Learned location of Extension (-4) 875 | -7/Scraptown | Discovered new exit (range 5) 937 | -7/Scraptown | Visited Artisan Demo Area 983 | -7/Scraptown | Visited Shadow of the Wyrm 1015 | -7/Scraptown | Visited TADAMA 1050 | -7/Scraptown | Visited UFD Registry 1050 | -7/Scraptown | Registered with UFD as "Gravcoil" 1070 | -7/Scraptown | Visited Awakened 1112 | -7/Scraptown | Visited Spacefarers 1422 | -7/Scraptown | Visited Observation Area 1475 | -7/Scraptown | Visited Science Testing Area 1553 | -7/Scraptown | Visited Cartography Club 1597 | -7/Scraptown | Visited Infowarlord's Domain 1627 | -7/Scraptown | Visited Derelict Rescue Squad 1635 | -7/Scraptown | Found DRS Beacon 1708 | -7/Scraptown | Visited DA-N13 Charitable Foundation 1738 | -7/Scraptown | Visited A0-MCA Data Center 1745 | -7/Scraptown | Given a C+ rating by A0-MCA 1752 | -7/Scraptown | Found A0-MCA's Component Scanner 1802 | -7/Scraptown | Met Optimus 1802 | -7/Scraptown | Accepted into 0bPrime 1840 | -7/Scraptown | Visited Scrapoid Pod Storage 1916 | -7/Scraptown | Civil war broke out across Scraptown 2016 | -7/Scraptown | Lost 6 allies 2061 | -7/Scraptown | Optimus destroyed in the chaos of civil war 2218 | -7/Scraptown | Lost 8 allies 2262 | -7/Scraptown | Core integrity fell below 50% 2284 | -7/Scraptown | Core integrity fell below 20% 2286 | -7/Scraptown | Destroyed by JH-AAK(j) with Overtuned Pulse Rifle Last Messages --------------- 02220_ Acquired Aluminum Leg. 02230_ Acquired 70 matter. 02232_ Acquired 6 matter. 02232_ Bolt penetrates C5-7IY(j). 02241_ C5-7IY(j) destroyed. 02246_ Penetrated by Bolt. 02250_ Y2-FCC(h) destroyed. 02252_ HO-BXQ(x) knocked back. 02255_ Triborg Siege Articulator blasted off. 02258_ HO-BXQ(x) knocked back. 02261_ Critical hit (Impale). 02262_ HO-BXQ(x) knocked back. 02268_ HO-BXQ(x) destroyed. 02271_ Lgt. Cannon destroyed. 02275_ Acquired 70 matter. 02276_ Acquired 15 matter. 02282_ Acquired 7 matter. 02282_ Lgt. Nuclear Core destroyed. 02283_ BH-USV(j) heat short circuits Scrap Suit. 02285_ Acquired 7 matter. Map ----- +----------------------------------------------------+ | #### ############ #????####" | | ## ## #????"""" """"""" | | ## ## #????"""" """"""" | | ## ## #????"""" ""##### | | ## """ ## #???#"""" ""# | | ## " "#" ## #???#""""[!%!! ""# | | ## """"""#""" ## ###?#""""!%==== "# " | | ?# " "##"" ## !! ""#"#""""!!%%!*""# "" | | ?# " ""###" ## !% * """"#""""![=!=[""# " | | ?# " "##?#" ## [=!%=""#######"%!=! "" | | ## "#??#" ## ![###?????#!!=%= "" | | ## ""???#" ## #########![!% ""# " | | ## "#???#"" ## =% %!!%[=!%* ""# "" | | ## "?????##" ## %& * !!%!=!== "# " | | ## "??????#" ## j % % ===[![* "# | | #####???????##### %=!!=== ![%=[[[ ""# | | ################# [!TT!!* *!=!!!%[! ""##### | | &[%!! =[TT!*=!%[/!%=% """"""" | | *==[%= %=%*=%!%[/=%**[! ["%"" "" | | !%!===![%![!%=!%![!%= ! !%=%!%=%! | | =%!==[=*!%==%[=![ !=![!=[ | | !=%[%*!=%!%=![!!= /!%%! | | j%=!=!=!=!=!#""""#" * *!/=! | | % !=!![%=!*#????#" ![%!% | | =%! !!=![==*#????#""" =["""" | | ###### #############" ###@[ ####????#######[###### | | #?????#" "#=%[!#?????????# # | | #?????#" "#*!*##?????????#"" # | | "#?????#" "#%=/#??????????#" "# | | """"" ""#?????#" """ "#!! #??????????#" """"" "# | | """"" "#?????#" """ "#!= #??????????#" "???" "# | | """"" ""#?????#" """ "#=[!#??????????#" "???" "# | | "#?????#" "#%!!#??????????#" "???" "# | | #########?????#" "%!=*#??????????#" "???" "# | | ## #??????#"""""""""%=![#??????????#" """"" "# | | """"#??????###########%/%#??????????#" "# | | """" #???????????????#=%!#??????????#"""""""""# | | " #????############=[=#??????????########### | | "" """ #????#"""""""""""!!%#????????????????????? | | #????#""""" """"%j*[#????????????????????? | | ##############"""" " "%=[!#????????????????????? | | ???????# =[=!#????????????????????? | | ##?????# #####"" "" "" [!!=#????????????????????? | | ""????"" "#??#""""""""""" #????????????????????? | | ""?#""" "#??#""""""""""" #????????????????????? | | "?#""" "#??############ #????????????????????? | | ""##"" "#?############# #????????????????????? | | ""##"" "#?#"""""""""""# #????????????????????? | | ""##" "#?#""! | ]] "# #????????????????????? | | ""##"| "#?#""!! !=]! "# #????????????????????? | +----------------------------------------------------+ Best States ------------- Heat Dissipation 25 Energy Generation 14 Energy Capacity 250 Matter Stores 300 Matter Capacity 300 Sight Range 16 Robot Scan Range 14 Terrain Scan Density 10 Armor Coverage 150 Evasion (%) 55 Item Schematics ----------------- None Robot Schematics ------------------ None Fabricated ------------ Nothing Repaired ---------- Nothing Alien Tech Used ----------------- None Achievements -------------- None Challenges ------------ None Game ------ Seed IntegratedSegregatorRouter Manual? 0 Play Time 00:44:43 Cumulative 7.9 hours Start 2025.06.24 @ 13:10:37 End 2025.06.24 @ 14:32:52 Sessions 5 Manual Loads 0 Difficulty Rogue Special Mode None Game No. 8 Rogue 8 Adventurer 0 Explorer 0 Win Type - Total 0 Types 0/0/0/0/0/0/0/0/0/0 Lore% 5 Gallery% 9 Achievement% 10 Wizard Run 0 Options --------- Layout 1 ASCII 0 Keyboard 0 Movement Mouse Keybinds 0 Fullscreen 1 Font 32/SmallcapsGlow Map View 50x35 Zoom Use 0% Tactical HUD 1 Map Filters NONE Filters NONE Steam 1 RUN: a4914bb0-9a87-4d0f-9edb-4ff5eeaec3b7